{"text_format":"3","workbook":"xlsx","n_sheets":4,"sheets":["питание","титульный школы","доходы","расходы"],"not_rendered":{"images":1},"read":"whole","date_system":"1900"}

{"sheet":"питание","index":0,"n_rows":27,"n_cols":3,"rows_kept":27,"merged":[[2,0,4,0],[2,1,4,1],[2,2,3,2]]}
[null,null,"План на 2024 год по питанию"]
[]
["№пп","Наименование школ","КОСГУ"]
[]
[null,null,226]
[1,"БСШ",6576000]
[{"$f":"A6+1","v":2},"ГИМНАЗИЯ",4888336]
[{"$f":"A7+1","v":3},"Арборская осн.",400502]
[4,"Бурбашская сред.",1564328]
[5,"Карадуванская сред.",1865486]
[6,"Книнская осн",724515]
[7,"Кугунурская средн.",955561]
[8,"М.Лызинская средн.",1515195]
[9,"Норминская средн.",3273705]
[10,"Нуринерская сред.",902878]
[11,"Пижмаринская осн.",582129]
[12,"Салаусская средн.",1359370]
[13,"Смаильская средн.",1055951]
[14,"Соснинская осн.",777943]
[15,"Ср.Кушкетская сред.",1032818]
[16,"Субашская осн.",393009]
[17,"Тюнтерская средн.",711502]
[18,"Ципьинская средн.",3126117]
[19,"Шишинерская осн",487392]
[20,"Шубанская осн.",391539]
[21,"Янгуловская сред.",1093071]
[null,null,{"$f":"SUM(C6:C26)","v":33677347}]

{"sheet":"титульный школы","index":1,"n_rows":30,"n_cols":14,"rows_kept":30,"merged":[[7,6,7,13],[17,4,17,6],[18,1,18,10],[20,1,20,10],[21,1,21,10],[22,2,22,3],[23,11,23,12],[26,2,26,3]]}
[]
[]
[{"$nulls":6},"Утверждена Министерством финансов Российской Федерации "]
[" Согласовано:",{"$nulls":5},"Утверждена в сумме 400502,00 руб."]
["Председатель финансово-бюджетной палаты",{"$nulls":5},"(четыреста тысяч пятьсот два рубля ноль копеек)"]
[]
["________________          Р.М.Ильясов",{"$nulls":5}," в том числе фонд заработной платы (фонд оплаты труда)"]
[{"$nulls":6},"Вышестоящий распорядитель бюджетных средств"]
[{"$nulls":6},"_____________________           Хайрутдинов А.Ф."]
[{"$nulls":6},"   (подпись)",{"$nulls":3},"(расшифровка подписи)"]
[]
[]
[]
[]
[]
[]
[{"$nulls":3},"СМЕТА  ДОХОДОВ  И  РАСХОДОВ",{"$nulls":9},"КОДЫ"]
[{"$nulls":11},"Форма по ОКУД",null,501010]
[null,"по внебюджетным средствам на 2024 год"]
[]
["Учреждение","МБОУ \"Арборская ООШ\" Балтасинского муниципального района РТ",{"$nulls":9},"           по ОКПО",null,72646452]
["Адрес","РТ, Балтасинский р-н, с.Арбор, ул. Татарстана, д.59"]
["Периодичность: годовая","годовая",{"$nulls":9},"           по ОКУД","ДКД",5220000]
["Индивидуальная (общая)",{"$nulls":10},"доп.ФК",null,20000]
["Министерство, ведомство",{"$nulls":10},"           доп КР",null,"522"]
["Раздел, подразделения",{"$nulls":10},"           по КФСР",null,"0702"]
["Целевая статья",{"$nulls":10},"           по КЦСР",null,"02 20 242100"]
["Вид расходов",{"$nulls":3},"питание ",{"$nulls":6},"           по КВР",null,244]
["Единица измерения: руб.",{"$nulls":10},"           по ОКЕИ"]
[{"$nulls":10},"             Контрольная сумма"]

{"sheet":"доходы","index":2,"n_rows":23,"n_cols":14,"rows_kept":23,"merged":[[0,3,0,7],[0,8,0,12],[1,3,1,7],[1,8,1,12]]}
[null,"Код","Код","Бюджетная ",{"$nulls":4},"Внебюджетная "]
["Наименование показателя","стро-","по","деятельность",{"$nulls":4},"деятельность",{"$nulls":4},"Итого"]
[null,"ки","КОСГУ","Всего","I","II","III","IV","Всего","I","II","III","IV"]
[1,2,3,4,5,6,7,8,9,10,11,12,13,"14"]
["Операции с доходами","001","100",{"$nulls":5},400502,80100.4,80100.4,100125.5,140175.7]
["   Поступления из бюджета","002","110"]
["   Доходы от рекламы","003","120"]
["   Доходы от оказания рыночных продаж  работ, услуг","004","130",{"$nulls":5},400502,80100.4,80100.4,100125.5,140175.7]
["   Доходы от оказания рыночных продаж товаров","005","440"]
["   Безвозмездные и безвозвратные поступления от бюджетов","006","150"]
["                           в том числе:"]
["                  поступления от других бюджетов бюджетной системы "]
["                  Российской Федерации","007","151"]
["                  перечисления наднациональных организаций и правительств иностранных "]
["                  государств","008","152"]
["                  перечисления международных финансовых организаций","009","153"]
["   Взносы, отчисления на социальные нужды","010","160"]
["   Доходы от операций с активами","011","170"]
["                           в том числе:"]
["                 доходы от переоценки активов","012","171"]
["                 доходы от реализации активов","013","172"]
["                 чрезвычайные доходы от операций с активами","014","173"]
["   Прочие доходы                                                       ","015","180"]

{"sheet":"расходы","index":3,"n_rows":60,"n_cols":14,"rows_kept":60,"merged":[[2,3,2,7],[2,8,2,12],[3,3,3,7],[3,8,3,12]]}
[]
[]
[null,"Код","Код","Бюджетная ",{"$nulls":4},"Внебюджетная "]
["                             Наименование показателя","стро-","по","деятельность",{"$nulls":4},"деятельность",{"$nulls":4},"Итого"]
[null,"ки","КОСГУ","Всего","I","II","III","IV","Всего","I","II","III","IV"]
[1,2,3,4,5,6,7,8,9,10,11,12,13,"6"]
["Расходы ","001","200",{"$nulls":5},400502,80100.4,80100.4,100125.5,140175.7]
["   Оплата труда и начисления на выплаты по оплате труда","002","210"]
["                           в том числе:"]
["                  оплата труда","003","211"]
["                  прочие выплаты","004","212"]
["                  начисления на выплаты по оплате труда","005","213"]
["   Приобретение услуг","006","220"]
["                           в том числе:"]
["                  услуги связи","007","221"]
["                  транспортные услуги","008","222"]
["                  коммунальные услуги","009","223"]
["                  арендная плата за пользование имуществом","010","224"]
["                  услуги по содержанию имущества","011","225"]
["                  прочие услуги (питание)","012","226",{"$nulls":5},"400502","80100,40","80100,4","100125,5","140175,7"]
["   Обслуживание долговых обязательств","013","230"]
["                           в том числе:"]
["                  обслуживание внутренних долговых обязательств","014","231"]
["                  обслуживание внешних долговых обязательств","015","232"]
["   Безвозмездные и безвозвратные перечисления организациям","016","240"]
["                           в том числе:"]
["                   безвозмездные и безвозвратные перечисления государственным"]
["                   организациям","017","241"]
["                   безвозмездные и безвозвратные перечисления негосударственным"]
["                   организациям","018","242"]
["   Безвозмездные и безвозвратные перечисления бюджетам","019","250"]
["                           в том числе:"]
["                    перечисления другим бюджетам бюджетной системы "]
["                    Российской Федерации","020","251"]
["                   перечисления наднациональным организациям и правительствам "]
["                   иностранных государств","021","252"]
["                   перечисления международным организациям","022","253"]
["   Социальное обеспечение","023","260"]
["                           в том числе:"]
["                   пособия по социальному страхованию населения","024","261"]
["                   пособия по социальной помощи населению","025","262"]
["                  социальные пособия, выплачиваемые организациями сектора"]
["                  государственного управления","026","263"]
["  Прочие расходы","027","290"]
["  Поступление нефинансовых активов","028",300]
["                           в том числе:"]
["увеличение  стоимости основных средств","029",310]
["увеличение  стоимости нематериальных активов","030",320]
["увеличение стоимости материальных запасов","031",340]
["   Увеличение задолженности по бюджетным ссудам и кредитам","032","540"]
["  Выбытие финансовых активов","033","600"]
["                           в том числе:"]
["                   уменьшение  стоимости ценных бумаг, кроме акций и иных форм участия в","035","620"]
["капитале"]
["                   уменьшение задолженности по бюджетным ссудам и кредитам","036","640"]
["Руководитель _________________ Хасанов Х.М.                  "]
["                                      (подпись)                   (расшифровка подписи)"]
["Главный бухгалтер                              Тихонова Л.Ш.                               ",{"$nulls":3}," "]
["                                        (подпись)                               (расшифровка подписи)"]
["\"________\" ____________________________20__ г."]